{"text_format":"1","workbook":"xlsx","n_sheets":1,"sheets":["Tabelle1"],"not_rendered":{"charts":0,"images":0,"macros":0,"external_links":0,"defined_names":0,"comments":0,"pivot_tables":0},"unopened":[],"bounds":{"document_bytes":16777216,"sheet_cells":100000,"rows_first":2000,"rows_last":500,"rows_between":2000,"halvings":0,"cell_chars":16384,"cell_head_chars":4096},"cells_cut":0,"cells_raw":0,"read":"whole","date_system":"1900"}

{"sheet":"Tabelle1","index":0,"n_rows":42,"n_cols":17,"rows_kept":42,"cut":false,"hidden":false,"merged":[[35,1,35,9],[2,6,2,11],[30,5,30,6],[31,5,31,6],[21,1,21,6],[22,1,22,6],[23,1,23,6],[4,4,4,11],[4,0,4,3]]}
["Gegliederter Kostenplan entsprechend den in der RE-Invest unter 5.4 a) bis d) aufgeführten Ausgabengruppen für den ",null,null,null,null,null,null,null,null,null,null,null,null,null,null,"NR Fördersatz"]
["Förderschwerpunkt \"Modernisierung zum Passivhaus im Bestand\"",null,null,null,null,null,null,null,null,null,null,null,null,null,null,0.3,"Für das Gebäude wird gleichzeitig keine Bundesförderung für effiziente Gebäude in Anspruch genommen."]
["Antragsteller:",null,null,null,"Objektadresse:",null,null,null,null,null,null,null,null,null,null,0.2,"Für das Gebäude wird gleichzeitig eine Bundesförderung für effiziente Gebäude in Anspruch genommen."]
[]
["Bitte auswählen:\nWerden neben der hessischen Förderung gleichzeitig Mittel der Bundesförderung für effiziente Gebäude (BEG) in Anspruch genommen? Wenn ja, reduziert sich der maximale Fördersatz von 30 % auf 20 %."]
[null,null,null,null,null,null,null,null,null,null,null,null,null,null,null,0.15,"Test Fördersatz"]
["a) ","Pauschalierte Investitionsausgaben für bauliche Maßnahmen (s. Teil II Nr. 5.4 a)  RE-Invest)"]
[null,null,null,"Bauteilfläche",null,"Kosten-\npauschale ",null,"Zuwendungsfähige\nAusgaben",null,"max. Förder-\nsatz",null,"mögliche Förderung"]
[null,"Maßnahme ",null,"[m²]",null,"[EUR/m²]",null,"[EUR]",null,null,null,"[EUR]"]
[null,"Außenwand ",null,null,"x",240,"=",{"$f":"ROUND(D10,0)*F10","v":0},"x",{"$f":"IF($E$5=$Q$2,$P$2,IF($E$5=$Q$6,$P$6,$P$3))","v":0.2},"=",{"$f":"H10*J10","v":0}]
[null,"Dach",null,null,"x",225,"=",{"$f":"ROUND(D11,0)*F11","v":0},"x",{"$f":"IF($E$5=$Q$2,$P$2,IF($E$5=$Q$6,$P$6,$P$3))","v":0.2},"=",{"$f":"H11*J11","v":0}]
[null,"Oberste Geschossdecke",null,null,"x",85,"=",0,"x",{"$f":"IF($E$5=$Q$2,$P$2,IF($E$5=$Q$6,$P$6,$P$3))","v":0.2},"=",0]
[null,"Grundfläche / Kellerdecke / Kellerinnenwände",null,null,"x",75,"=",0,"x",{"$f":"IF($E$5=$Q$2,$P$2,IF($E$5=$Q$6,$P$6,$P$3))","v":0.2},"=",0]
[null,"Fenster/ Haustüren",null,null,"x",635,"=",0,"x",{"$f":"IF($E$5=$Q$2,$P$2,IF($E$5=$Q$6,$P$6,$P$3))","v":0.2},"=",0]
[]
[null,"Summe der pauschalierten Investitionsausgaben für bauliche Maßnahmen",null,null,null,null,"a)",{"$f":"SUM(H10:H14)","v":0},"x",{"$f":"IF($E$5=$Q$2,$P$2,IF($E$5=$Q$6,$P$6,$P$3))","v":0.2},"=",{"$f":"SUM(L10:L14)","v":0}]
[]
["b)","Investive Ausgaben für die technische Gebäudeausrüstung zur Erfüllung der Anforderungen an den Jahres-Heizwärmebedarf (s. Teil II Nr. 5.4 b)  RE-Invest)"]
[null,"(insb. raumlufttechnische Anlagen (Lüftungsanlage(n), Erdwärmeübertrager, …))"]
[null,null,null,null,null,null,null,"Tatsächliche Höhe der geplanten investiven Ausgaben",null,"max. Förder-\nsatz",null,"mögliche Förderung"]
[null,"Maßnahme",null,null,null,null,null,"[EUR]",null,null,null,"[EUR]"]
[null,"Lüftungsanlage(n) mit Wärmerückgewinnung (Wärmerückgewinnungsgrad > 80%)",null,null,null,null,null,null,"x",{"$f":"IF($E$5=$Q$2,$P$2,IF($E$5=$Q$6,$P$6,$P$3))","v":0.2},"=",{"$f":"H22*J22","v":0}]
[null,null,null,null,null,null,null,null,"x",{"$f":"IF($E$5=$Q$2,$P$2,IF($E$5=$Q$6,$P$6,$P$3))","v":0.2},"=",{"$f":"H23*J23","v":0}]
[null,null,null,null,null,null,null,null,"x",{"$f":"IF($E$5=$Q$2,$P$2,IF($E$5=$Q$6,$P$6,$P$3))","v":0.2},"=",0]
[]
[null,"Summe der investiven Ausgaben für die technische Gebäudeausrüstung",null,null,null,null,"b)",{"$f":"SUM(H22:H24)","v":0},"x",{"$f":"IF($E$5=$Q$2,$P$2,IF($E$5=$Q$6,$P$6,$P$3))","v":0.2},"=",{"$f":"SUM(L22:L24)","v":0}]
[]
["c)","Investive Ausgaben für die Durchführung von Luftdichtheitstests und für die Installation von Messeinrichtungen (s. Teil II Nr. 5.4 c)  RE-Invest)"]
[null,null,null,null,null,"Anzahl",null,"Tatsächliche Höhe der geplanten investiven Ausgaben",null,"max. Förder-\nsatz",null,"mögliche Förderung"]
[null,"Maßnahme",null,null,null,"[Stk.]",null,"[EUR]",null,null,null,"[EUR]"]
[null,"Luftdichtheitstest(s)",null,null,null,null,null,null,"x",{"$f":"IF($E$5=$Q$2,$P$2,IF($E$5=$Q$6,$P$6,$P$3))","v":0.2},"=",{"$f":"H31*J31","v":0}]
[null,"Messeinrichtungen (Wärmemengenzähler)",null,null,null,null,null,null,"x",{"$f":"IF($E$5=$Q$2,$P$2,IF($E$5=$Q$6,$P$6,$P$3))","v":0.2},"=",0]
[]
[null,"Summe der investiven Ausgaben für die Durchführung von Luftdichtheitstests und für die Installation von Messeinrichtungen ",null,null,null,null,"c)",{"$f":"SUM(H31:H32)","v":0},"x",{"$f":"IF($E$5=$Q$2,$P$2,IF($E$5=$Q$6,$P$6,$P$3))","v":0.2},"=",{"$f":"SUM(L31:L32)","v":0}]
[]
["d)","Pauschalierte Planungsausgaben Dritter (s. Teil II Nr. 5.4 d) RE-Invest: 10 Prozent der anerkannten zuwendungsfähigen Investitionsausgaben)"]
[null,null,null,null,null,null,null,"zuwendungsfähige pauschalierte Planungsausgaben",null,"max. Förder-\nsatz",null,"mögliche Förderung"]
[null,null,null,null,null,null,null,"[EUR]",null,null,null,"[EUR]"]
[null,"Pauschalierte Planungsausgaben",null,null,null,null,"d)",{"$f":"(H34+H26+H16)*10%","v":0},"x",{"$f":"IF($E$5=$Q$2,$P$2,IF($E$5=$Q$6,$P$6,$P$3))","v":0.2},"=",{"$f":"H39*J39","v":0}]
[]
[null,"Summe der zuwendungsfähigen Ausgaben und mögliche Förderung für",null,null,null,null,"a)+b)+c)+d)",{"$f":"H16+H26+H34+H39","v":0},"x",{"$f":"IF($E$5=$Q$2,$P$2,IF($E$5=$Q$6,$P$6,$P$3))","v":0.2},"=",{"$f":"H41*J41","v":0}]
[null,"bauliche und technische Maßnahmen sowie Planungsleistungen"]